bitfinex-derivatives/quotes_ETHF0:USTF0_20250102
["timestamp","ask_amount","ask_price","bid_price","bid_amount"]
[1735810758545,2.53545467,3442.1,3441.6,1.3228]
[1735810758848,2.53545467,3442.1,3441.7,0.29094]
[1735810758849,0.29093,3441.8,3441.7,0.29094]
[1735810759943,0.4657,3442.0,3441.6,1.3228]
[1735810760547,0.29093,3441.8,3441.7,0.29094]
[1735810760936,0.29093,3441.8,3441.6,1.3228]
[1735810760937,0.29093,3441.9,3441.8,0.29093]
[1735810761749,0.29094,3441.8,3441.7,0.29094]
[1735810761951,0.29094,3441.7,3441.6,0.8655]
[1735810762344,0.29095,3441.6,3441.5,3.2078]
[1735810762547,0.71985,3441.6,3441.5,3.2078]
[1735810764448,2.07745467,3441.8,3441.5,3.2078]
[1735810764650,0.29095,3441.7,3441.5,3.49875]
[1735810765047,0.29095,3441.7,3441.5,3.2078]
[1735810765251,0.29095,3441.7,3441.6,0.29095]
[1735810766450,0.29095,3441.6,3441.5,3.2078]
[1735810767355,0.29099,3441.2,3441.0,3.49879]
[1735810767550,0.29099,3441.2,3441.0,3.2078]
[1735810767855,0.29099,3441.2,3441.1,0.29099]
[1735810768458,0.29099,3441.2,3441.0,3.4988]
[1735810768957,2.98515467,3441.5,3441.0,3.2078]
[1735810769160,0.29099,3441.1,3441.0,3.2078]
[1735810769656,0.29099,3441.1,3441.0,3.4988]
[1735810769855,2.98515467,3441.5,3441.0,3.4988]
[1735810770057,0.29099,3441.2,3441.0,3.4988]
[1735810770256,0.29099,3441.2,3441.0,3.2078]
[1735810770452,0.29098,3441.3,3441.1,0.29099]
[1735810770650,2.98515467,3441.5,3441.1,0.4287]
[1735810770852,0.29098,3441.2,3441.1,0.4287]
[1735810771051,0.4412,3441.5,3441.1,0.4287]
[1735810771256,0.29095,3441.6,3441.4,0.29097]
[1735810771451,1.05968575,3442.1,3441.5,0.4273]
[1735810771653,0.74538,3442.5,3442.3,0.29088]
[1735810771857,0.32408476,3442.7,3442.2,0.2909]
[1735810772159,0.29088,3442.5,3442.3,1.14689]
[1735810772356,0.32408476,3442.7,3442.3,1.14689]
[1735810772657,0.32408476,3442.7,3442.3,0.856]
[1735810772856,3.75703787,3442.8,3442.4,3.2078]
[1735810773051,3.75703787,3442.8,3442.7,0.29086]
[1735810773562,4.04788787,3442.8,3442.7,0.29086]
[1735810773958,4.04788787,3442.8,3442.6,0.29086]
[1735810774459,4.04788787,3442.8,3442.5,0.29087]
[1735810774765,4.04788787,3442.8,3442.6,0.29086]
[1735810774961,3.75703787,3442.8,3442.4,3.6295]
[1735810775155,0.29087,3442.6,3442.4,3.6295]
[1735810775461,0.29087,3442.6,3442.4,0.71258]
[1735810775656,9.04229254,3442.8,3442.4,0.4217]
[1735810776260,9.04229254,3442.8,3442.6,0.29086]
[1735810776460,0.29086,3442.7,3442.5,0.29087]
[1735810776864,0.29087,3442.6,3442.5,0.29087]
[1735810777258,0.29087,3442.6,3442.3,0.856]
[1735810777259,9.04229254,3442.8,3441.9,3.2078]
[1735810777463,0.29092,3442.0,3441.9,3.2078]
[1735810777663,0.29092,3442.0,3441.8,0.29093]
[1735810778259,0.29091,3442.1,3441.8,0.29093]
[1735810778459,0.29092,3442.0,3441.8,0.29093]
[1735810778759,0.29096,3441.5,3441.3,0.29097]
[1735810778956,0.29096,3441.5,3441.4,0.4641]
[1735810779956,0.32408131,3441.8,3441.1,3.2078]
[1735810780159,2.07745467,3441.6,3441.1,3.6719]
[1735810780468,0.29098,3441.2,3441.1,3.6719]
[1735810782074,0.29098,3441.2,3441.1,3.96289]
[1735810782271,2.07745467,3441.6,3441.1,3.96289]
[1735810782465,0.29098,3441.3,3441.1,3.96289]
[1735810782764,2.07745467,3441.6,3441.1,3.6719]
[1735810782970,0.29095,3441.6,3441.1,3.6719]
[1735810783170,0.32408131,3441.8,3441.1,3.6719]
[1735810783471,0.32408131,3441.8,3441.5,0.29095]
[1735810783667,0.29095,3441.6,3441.5,0.29095]
[1735810783973,0.29094,3441.7,3441.6,0.29095]
[1735810784965,0.32408131,3441.8,3441.1,3.6719]
[1735810785171,0.29095,3441.6,3441.5,0.29095]
[1735810786371,2.94985467,3442.2,3441.5,3.2078]
[1735810786570,0.29092,3441.9,3441.8,0.29093]
[1735810786769,0.29092,3442.0,3441.9,0.29092]
[1735810786969,6.84201911,3442.2,3442.1,0.29091]
[1735810787470,7.13291911,3442.2,3442.1,0.29091]
[1735810787671,6.84201911,3442.2,3442.1,0.29091]
[1735810787975,0.2909,3442.3,3442.1,0.29091]
[1735810788179,3.2078,3442.4,3441.8,0.4393]
[1735810788476,0.29091,3442.1,3441.9,0.29092]
[1735810788676,0.29091,3442.1,3441.8,0.4393]
[1735810788973,0.32378439,3442.3,3441.8,0.4393]
[1735810789163,0.32378439,3442.3,3442.0,0.29091]
[1735810789370,0.29095,3441.6,3441.5,3.2078]
[1735810789569,2.07745467,3441.7,3441.4,0.4543]
[1735810789771,0.29096,3441.5,3441.4,0.4543]
[1735810789973,0.29095,3441.6,3441.4,0.74526]
[1735810791077,0.29095,3441.7,3441.5,0.29095]
[1735810791376,0.29096,3441.5,3441.4,0.74526]
[1735810791981,0.29095,3441.7,3441.5,0.29096]
[1735810793575,0.29093,3441.8,3441.5,0.29096]
[1735810793775,0.4329,3441.9,3441.5,0.29096]
[1735810793975,0.29095,3441.7,3441.5,0.29096]
[1735810794181,0.29096,3441.5,3441.4,0.4543]
[1735810796277,0.29096,3441.5,3441.4,0.74527]
[1735810796676,0.4213,3441.8,3441.4,0.4543]
[1735810796880,0.29094,3441.7,3441.5,0.29095]
[1735810797685,0.4213,3441.8,3441.0,7.71726698]
[1735810797982,0.29097,3441.5,3441.1,1.3261]
[1735810798180,0.4213,3441.8,3441.0,7.71726698]
[1735810798683,0.29094,3441.7,3441.5,0.29095]
[1735810798984,0.29095,3441.6,3441.1,1.3156]
[1735810799177,0.29095,3441.6,3441.5,0.29096]
[1735810799379,0.4329,3441.9,3441.1,1.3156]
[1735810799582,3.2078,3442.0,3441.4,3.2078]
[1735810799983,0.29093,3441.9,3441.7,0.29094]
[1735810800280,0.29093,3441.9,3441.8,0.4233]
[1735810800484,0.29093,3441.9,3441.8,0.8833]
[1735810801179,0.29093,3441.9,3441.8,0.4233]
[1735810802981,0.29095,3441.7,3441.6,0.29095]
[1735810803681,0.32408166,3442.0,3441.4,3.49876]
[1735810803883,0.29096,3441.5,3441.4,3.49876]
[1735810804078,0.4636,3441.6,3441.4,3.2078]
[1735810804278,0.75456,3441.6,3441.5,0.29096]
[1735810804486,0.29096,3441.5,3441.4,3.49876]
[1735810805685,0.29096,3441.5,3441.4,3.2078]
[1735810806381,0.29094,3441.8,3441.6,0.29095]
[1735810806582,0.75832644,3442.0,3441.4,3.2078]
[1735810806786,0.29096,3441.6,3441.4,3.49876]
[1735810806980,0.29095,3441.7,3441.5,0.29095]
[1735810807381,0.29095,3441.6,3441.5,0.29095]
[1735810807680,0.29095,3441.7,3441.6,0.29095]
[1735810807875,0.29095,3441.6,3441.5,0.29095]
[1735810808289,0.29095,3441.7,3441.5,0.29095]
[1735810808681,0.29095,3441.7,3441.6,0.29095]
[1735810808985,1.16473089,3442.0,3441.6,0.29095]
[1735810809182,0.75832644,3442.0,3441.4,3.2078]
[1735810809383,1.04924644,3442.0,3441.9,0.29092]
[1735810810381,0.29093,3441.9,3441.8,0.29093]
[1735810812089,0.29095,3441.7,3441.6,0.29094]
[1735810813484,0.4341,3442.0,3441.4,3.2078]
[1735810813792,0.29095,3441.6,3441.5,0.29095]
[1735810813994,0.29095,3441.7,3441.5,0.29096]
[1735810814192,0.32422644,3441.8,3441.4,3.2078]
[1735810814396,0.61516644,3441.8,3441.7,0.29094]
[1735810815389,0.29093,3441.9,3441.8,0.29093]
[1735810817092,0.29094,3441.8,3441.7,0.29094]
[1735810817695,0.29093,3441.9,3441.8,0.29093]
[1735810818997,0.29094,3441.8,3441.7,0.29094]
[1735810819793,0.4341,3442.0,3441.4,3.2078]
[1735810819999,1.06163644,3442.2,3442.1,0.29091]
[1735810820299,0.29092,3442.0,3441.9,0.29092]
[1735810822008,1.48473644,3442.2,3442.1,0.29091]
[1735810822310,0.29089,3442.3,3442.2,0.2909]
[1735810822697,0.29088,3442.5,3442.4,0.29088]
[1735810822907,0.78951369,3442.6,3442.1,2.07745467]
[1735810823403,0.78951369,3442.6,3442.5,0.29087]
[1735810823603,1.08038369,3442.6,3442.5,0.29087]
[1735810823810,7.9224028,3442.6,3442.5,0.29087]
[1735810824110,0.29088,3442.5,3442.4,0.29088]
[1735810824307,0.61559369,3442.5,3442.4,0.29088]
[1735810824897,0.29088,3442.5,3442.4,0.29088]
[1735810826108,1.08038369,3442.6,3442.5,0.29087]
[1735810826507,0.29088,3442.5,3442.4,0.29088]
[1735810826705,0.78951369,3442.6,3442.2,0.4576]
[1735810826906,0.29089,3442.4,3442.3,0.29089]
[1735810827812,0.32471369,3442.6,3442.5,0.29087]
[1735810828509,3.49866,3442.7,3442.5,0.29087]
[1735810828811,3.49866,3442.7,3442.6,0.4378]
[1735810829006,0.29087,3442.6,3442.5,0.29087]
[1735810829201,0.61488858,3442.6,3442.5,0.29087]
[1735810829504,3.49866,3442.7,3442.3,0.4246]
[1735810829805,3.49866,3442.7,3442.6,0.29087]
[1735810830006,3.82260468,3442.7,3442.6,0.29087]
[1735810830710,3.49866,3442.7,3442.6,0.29087]
[1735810831412,0.29087,3442.6,3442.5,0.29087]
[1735810831612,3.2078,3442.7,3442.3,0.4246]
[1735810831812,0.29088,3442.5,3442.4,0.29088]
[1735810832612,0.74767,3442.6,3442.5,0.29087]
[1735810833109,3.2078,3442.7,3442.3,0.4246]
[1735810833309,3.2078,3442.7,3442.6,0.29087]
[1735810833910,0.8936,3442.9,3442.4,0.44]
[1735810834213,0.29085,3442.8,3442.7,0.29085]
[1735810835310,0.29086,3442.7,3442.6,0.29086]
[1735810836008,0.29087,3442.6,3442.5,0.29087]
[1735810836815,0.29086,3442.7,3442.3,0.4246]
[1735810837307,0.8936,3442.9,3442.6,0.29086]
[1735810837513,0.29086,3442.7,3442.4,0.29088]
[1735810837709,0.29087,3442.6,3442.3,0.4246]
[1735810837902,0.29087,3442.6,3442.5,0.29087]
[1735810840616,0.29086,3442.7,3442.6,0.29086]
[1735810841017,0.29085,3442.8,3442.7,0.29086]
[1735810841218,1.21736948,3442.9,3442.3,0.4246]
[1735810841515,0.29086,3442.7,3442.6,0.29087]
[1735810841913,0.29087,3442.6,3442.5,0.29087]
[1735810842615,0.29087,3442.6,3442.4,0.29088]
[1735810842910,0.29089,3442.3,3442.2,0.4576]
[1735810843110,0.29089,3442.3,3442.2,0.7485]
[1735810843310,0.29089,3442.3,3442.2,0.2909]
[1735810844014,0.4261,3442.5,3441.9,7.71726698]
[1735810844216,0.8458,3442.2,3441.9,3.2078]
[1735810844517,1.1367,3442.2,3442.0,0.29091]
[1735810844710,0.8458,3442.2,3442.0,0.29091]
[1735810845018,0.29091,3442.1,3442.0,0.29091]
[1735810846211,1.1367,3442.2,3442.1,0.29091]
[1735810846407,1.1367,3442.2,3442.0,0.29091]
[1735810846916,1.1367,3442.2,3442.1,0.29091]
[1735810847120,0.8458,3442.2,3442.1,0.29091]
[1735810848019,0.32410147,3442.6,3442.4,0.29088]
[1735810848317,0.4593,3442.5,3442.4,0.29088]
[1735810849916,0.75017,3442.5,3442.4,0.29088]
[1735810850918,0.29088,3442.4,3442.3,0.29089]
[1735810851516,0.4593,3442.5,3441.9,3.2078]
[1735810851819,0.2909,3442.2,3442.0,0.29091]
[1735810852020,0.4266,3442.1,3442.0,0.29091]
[1735810856512,0.4266,3442.1,3441.8,0.8804]
[1735810856717,0.4434,3442.0,3441.9,0.29092]
[1735810858116,0.78583497,3442.3,3442.2,0.2909]
[1735810858117,0.32413497,3442.3,3442.2,0.2909]
[1735810858322,0.32413497,3442.6,3442.5,0.29087]
[1735810858522,9.06825218,3443.2,3442.5,0.29087]
[1735810858523,1.21893497,3443.0,3442.6,0.29087]
[1735810858827,1.21893497,3443.0,3442.8,0.29084]
[1735810859028,1.21893497,3443.0,3442.9,0.29084]
[1735810859231,6.84201911,3443.1,3442.7,2.52905467]
[1735810859527,7.29591911,3443.7,3443.6,0.29078]
[1735810860218,6.84201911,3443.7,3443.4,3.2078]
[1735810860626,7.13279911,3443.7,3443.4,3.4986]
[1735810861127,0.4539,3443.6,3443.4,3.4986]
[1735810861327,0.4539,3443.6,3443.4,3.2078]
[1735810861625,0.452,3443.8,3443.7,0.29077]
[1735810862219,0.452,3443.8,3443.5,0.4312]
[1735810862420,0.74276,3443.8,3443.6,0.29077]
[1735810863825,0.29077,3443.7,3443.5,0.72198]
[1735810864022,0.74277,3443.8,3443.6,0.29078]
[1735810864528,0.74277,3443.8,3443.5,0.4312]
[1735810864728,0.74277,3443.8,3443.7,0.29077]
[1735810864923,0.452,3443.8,3443.7,0.29077]
[1735810865930,0.29078,3443.6,3443.5,0.4312]
[1735810866129,0.74748,3443.7,3443.6,0.29078]
[1735810866327,0.4567,3443.7,3443.6,0.29078]
[1735810868331,0.74747,3443.7,3443.6,0.29078]
[1735810869036,0.29078,3443.6,3443.4,3.2078]
[1735810869336,0.29079,3443.5,3443.4,3.4986]
[1735810869931,0.29079,3443.5,3443.4,3.2078]
[1735810872740,0.29082,3443.1,3443.0,0.4477]
[1735810873633,0.4229,3443.4,3443.0,0.4477]
[1735810873832,0.29082,3443.2,3443.0,0.73853]
[1735810874726,0.4229,3443.4,3443.0,0.4477]
[1735810875330,0.29082,3443.1,3443.0,0.4477]
[1735810876128,0.4349,3443.3,3442.8,3.49864]
[1735810876540,0.29084,3443.0,3442.8,3.49864]
[1735810877031,0.4349,3443.3,3442.0,3.2078]
[1735810877032,0.29091,3442.1,3442.0,3.2078]
[1735810877231,0.29089,3442.3,3442.0,3.6338]
[1735810877440,0.2909,3442.2,3442.0,3.92471]
[1735810877629,0.29083,3443.0,3442.0,3.6338]
[1735810877831,0.29085,3442.9,3442.4,3.2078]
[1735810878034,0.29085,3442.9,3442.6,0.29087]
[1735810878227,0.29085,3442.9,3442.5,0.8904]
[1735810878228,6.84201911,3443.0,3442.7,0.4575]
[1735810878433,0.29085,3442.8,3442.7,0.4575]
[1735810878633,0.29086,3442.7,3442.5,0.29087]
[1735810878829,0.31167758,3442.9,3442.6,0.74836]
[1735810878830,0.29085,3442.8,3442.6,0.74836]
[1735810879031,0.31167758,3442.9,3442.6,0.4575]
[1735810879032,3.2078,3442.9,3442.6,0.4575]
[1735810879232,0.29086,3442.7,3442.6,0.4575]
[1735810879840,0.29087,3442.5,3442.4,3.2078]
[1735810880028,0.2909,3442.2,3442.0,1.17101]
[1735810880231,0.29091,3442.1,3442.0,0.8801]
[1735810881038,0.2909,3442.2,3442.0,1.17101]
[1735810881433,0.2909,3442.2,3442.1,0.29091]
[1735810881639,0.4647,3442.4,3442.1,0.29091]
[1735810881837,0.4647,3442.4,3442.0,1.17101]
[1735810882055,0.2909,3442.2,3442.0,1.17101]
[1735810882642,0.4647,3442.4,3442.1,0.29091]
[1735810882839,0.2909,3442.3,3442.1,0.29091]
[1735810883246,0.4647,3442.4,3442.0,0.8801]
[1735810883545,0.29085,3442.8,3442.2,2.07745467]
[1735810883744,3.2078,3442.9,3442.8,0.29085]
[1735810884137,3.2078,3442.9,3442.2,2.07745467]
[1735810884343,0.4217,3443.1,3442.2,2.07745467]
[1735810884344,0.4217,3443.1,3442.5,3.2078]
[1735810884547,0.4217,3443.1,3443.0,0.29083]
[1735810884753,3.2078,3443.7,3443.0,0.72709]
[1735810885043,7.13277911,3443.9,3443.7,0.29077]
[1735810885247,0.29076,3443.9,3443.7,3.49857]
[1735810885447,0.29075,3444.0,3443.7,3.2078]
[1735810885748,0.29075,3444.0,3443.8,0.29076]
[1735810886143,2.07745467,3444.3,3443.7,3.2078]
[1735810886337,0.29076,3443.8,3443.7,3.2078]
[1735810894251,2.38920286,3444.0,3443.7,3.2078]
[1735810894252,0.31174819,3444.0,3443.7,3.2078]
[1735810894452,0.29074,3444.1,3444.0,0.29075]
[1735810894750,0.29074,3444.1,3443.8,0.8796]
[1735810894751,0.29075,3444.0,3443.9,0.29075]
[1735810895051,0.29076,3443.9,3443.8,0.4407]
[1735810899353,0.29076,3443.9,3443.8,0.73146]
[1735810900357,7.13277911,3443.9,3443.8,0.73146]
[1735810900558,6.84201911,3443.9,3443.8,0.73146]
[1735810900759,6.84201911,3443.9,3443.8,0.4407]
[1735810900760,7.13277911,3443.9,3443.8,0.4407]
[1735810901262,0.29076,3443.9,3443.8,0.4407]
[1735810903260,7.28601911,3444.0,3443.8,0.4407]
[1735810903261,6.84201911,3444.0,3443.8,0.4407]
[1735810903460,6.84201911,3444.0,3443.9,0.29076]
[1735810904862,7.13276911,3444.0,3443.9,0.29076]
[1735810906062,0.29075,3444.0,3443.9,0.29076]
[1735810906462,0.31146693,3444.1,3443.8,0.4407]
[1735810906764,0.29075,3444.0,3443.9,0.29075]
[1735810908962,0.31146693,3444.1,3443.7,3.2078]
[1735810909166,0.29076,3443.8,3443.7,3.2078]
[1735810910062,0.29076,3443.8,3443.7,3.49857]
[1735810910468,0.4616,3444.0,3443.7,3.2078]
[1735810910768,0.29076,3443.8,3443.7,3.2078]
[1735810913570,1.19076,3443.8,3443.7,3.2078]
[1735810914971,8.03277911,3443.8,3443.7,3.2078]
[1735810915273,8.34424604,3443.8,3443.7,3.2078]
[1735810915660,8.34424604,3443.8,3442.6,2.07745467]
[1735810915867,0.29083,3443.0,3442.9,3.2078]
[1735810916363,0.29083,3443.0,3442.9,3.49864]
[1735810917269,0.31146693,3443.5,3442.9,3.2078]
[1735810917475,0.31146693,3443.5,3443.4,0.2908]
[1735810917476,0.60226693,3443.5,3443.4,0.2908]
[1735810917669,0.29078,3443.6,3443.5,0.29078]
[1735810917870,0.31146693,3443.7,3443.6,0.75178]
[1735810918174,7.13278911,3443.8,3443.7,0.29077]
[1735810918870,0.29077,3443.7,3443.6,0.461]
[1735810919076,0.29077,3443.7,3443.6,0.75178]
[1735810919272,0.29077,3443.7,3443.6,0.461]
[1735810920074,0.29077,3443.7,3443.6,0.75178]
[1735810920274,0.29077,3443.7,3443.6,0.461]
[1735810920476,0.29077,3443.7,3443.6,0.75178]
[1735810921165,6.84201911,3443.9,3443.6,0.75177]
[1735810921166,0.29076,3443.8,3443.6,0.75177]
[1735810921573,0.29076,3443.8,3443.7,0.29077]
[1735810921874,6.84201911,3443.9,3443.7,0.29077]
[1735810922177,7.13277911,3443.9,3443.8,0.29076]
[1735810922379,0.29077,3443.8,3443.7,0.29077]
[1735810922574,7.15449415,3443.9,3443.8,0.29076]
[1735810922575,7.13277911,3443.9,3443.8,0.29076]
[1735810922779,6.84201911,3443.9,3443.8,3.49856]
[1735810922978,0.29075,3444.0,3443.9,0.29076]
[1735810923181,0.29075,3444.1,3444.0,0.29074]
[1735810923973,0.4416,3444.5,3444.4,0.29071]
[1735810924174,0.2907,3444.6,3444.4,0.29071]
[1735810924573,0.31235847,3444.7,3444.5,0.8702]
[1735810924769,0.2907,3444.6,3444.5,1.1609]
[1735810924976,0.29069,3444.7,3444.5,1.1609]
[1735810925180,0.31235847,3444.8,3444.7,0.29069]
[1735810925381,6.84201911,3444.9,3444.8,0.29068]
[1735810925577,0.29066,3445.1,3444.8,0.29068]
[1735810925875,0.29066,3445.1,3444.7,5.28525467]
[1735810926081,0.29066,3445.1,3445.0,0.29066]
[1735810926281,0.29065,3445.1,3445.0,0.29066]
[1735810926480,0.60259755,3445.2,3445.0,0.29066]
[1735810926681,0.29065,3445.2,3445.0,0.29066]
[1735810926882,0.29065,3445.2,3445.1,0.4434]
[1735810928494,1.00686696,3445.2,3445.1,0.4434]
[1735810928896,0.71621696,3445.2,3444.7,3.2078]
[1735810929091,0.29066,3445.0,3444.9,0.29067]
[1735810929392,0.29066,3445.0,3444.8,0.29067]
[1735810929593,0.29066,3445.0,3444.8,0.29068]
[1735810929794,0.29066,3445.0,3444.9,0.29067]
[1735810930495,0.71621696,3445.2,3444.7,3.6559]
[1735810930697,0.29067,3445.0,3444.8,0.29068]
[1735810931799,0.71621696,3445.2,3444.7,3.6559]
[1735810931992,0.71621696,3445.2,3444.7,3.94658]
[1735810931993,0.29067,3444.9,3444.7,3.94658]
[1735810932188,0.29068,3444.8,3444.7,3.6559]
[1735810932393,0.29068,3444.8,3444.7,3.2078]
[1735810932595,2.07745467,3444.9,3444.2,3.92742]
[1735810932896,0.8794,3444.7,3444.2,3.6367]
[1735810933196,0.4389,3444.7,3444.2,3.6367]
[1735810933403,0.72959,3444.7,3444.2,3.6367]
[1735810933706,0.72959,3444.7,3444.5,0.2907]
[1735810933888,0.4389,3444.7,3444.5,0.2907]
[1735810934091,0.2907,3444.6,3444.5,0.2907]
[1735810934297,0.29071,3444.5,3444.2,3.6367]
[1735810934491,0.29071,3444.5,3444.4,0.29071]
[1735810934692,0.2907,3444.6,3444.4,0.29071]
[1735810934894,0.29069,3444.8,3444.6,0.29069]
[1735810936402,0.29069,3444.7,3444.6,0.29069]
[1735810936701,0.2907,3444.6,3444.5,0.2907]
[1735810937301,6.84201911,3444.7,3444.2,3.6367]
[1735810937492,7.13271911,3444.7,3444.5,0.2907]
[1735810937801,0.2907,3444.6,3444.5,0.2907]
[1735810938002,7.13270911,3444.7,3444.5,0.2907]
[1735810938196,6.84201911,3444.7,3444.2,3.6367]
[1735810938396,0.2907,3444.6,3444.2,3.6367]
[1735810938598,0.2907,3444.6,3444.5,0.2907]
[1735810939096,7.13270911,3444.7,3444.6,0.2907]
[1735810940196,6.84201911,3444.7,3444.6,3.4985]
[1735810941203,6.84201911,3445.0,3444.9,0.29067]
[1735810941803,6.84201911,3445.0,3444.8,0.4564]
[1735810942001,0.29067,3444.9,3444.8,0.4564]
[1735810943399,0.29069,3444.7,3444.6,3.2078]
[1735810944895,6.84201911,3445.0,3444.6,3.2078]
[1735810945095,0.29068,3444.8,3444.7,0.29069]
[1735810945502,0.29069,3444.7,3444.6,3.49849]
[1735810945803,0.71079,3444.7,3444.6,3.4985]
[1735810946006,0.71079,3444.7,3444.6,3.2078]
[1735810946800,0.71079,3444.7,3444.6,3.4985]
[1735810947107,0.71079,3444.7,3444.6,3.2078]
[1735810947307,0.71079,3444.7,3444.6,3.4985]
[1735810948008,0.4201,3444.7,3444.6,3.4985]
[1735810948510,0.31170943,3445.1,3444.6,3.2078]
[1735810948810,0.60236943,3445.1,3445.0,0.29066]
[1735810949106,0.31170943,3445.1,3445.0,0.29066]
[1735810949307,0.31170943,3445.1,3445.0,3.49846]
[1735810950105,0.60235943,3445.1,3445.0,3.49846]
[1735810950404,0.29065,3445.1,3445.0,3.49846]
[1735810951304,0.4622,3445.2,3445.0,3.49846]
[1735810951305,0.71694425,3445.5,3445.0,3.49846]
[1735810951509,0.29065,3445.2,3445.1,0.29065]
[1735810951809,0.29064,3445.3,3445.2,0.29064]
[1735810952310,1.00758425,3445.3,3445.2,0.29064]
[1735810953012,0.71694425,3445.3,3445.2,0.29064]
[1735810954205,0.29064,3445.3,3445.2,0.29064]
[1735810957414,0.29065,3445.2,3445.1,0.29065]
[1735810961408,0.29065,3445.3,3445.2,0.29064]
[1735810961607,0.72283,3445.5,3445.4,0.29063]
[1735810964818,0.29063,3445.4,3445.3,0.72163]
[1735810965722,8.27298562,3445.4,3445.3,0.72163]
[1735810965917,8.98989258,3445.4,3445.3,0.72163]
[1735810966117,8.69926258,3445.4,3445.3,0.72163]
[1735810966616,8.29406505,3445.4,3445.3,0.72163]
[1735810967709,8.58469505,3445.4,3445.3,0.72163]
[1735810967914,8.29406505,3445.4,3445.3,0.72163]
[1735810968521,8.58469505,3445.4,3445.3,0.29063]
[1735810969421,8.29406505,3445.4,3445.3,0.29063]
[1735810972021,0.31170943,3445.4,3445.3,0.29063]
[1735810973519,9.79107218,3445.5,3445.4,0.29063]
[1735810973723,9.79107218,3445.5,3445.4,3.49843]
[1735810975214,10.10326194,3445.5,3445.4,3.49843]
[1735810976914,10.10326194,3445.5,3445.4,0.29063]
[1735810977115,10.10326194,3445.5,3445.4,3.49843]
[1735810977621,9.81264194,3445.5,3445.4,3.49843]
[1735810977819,10.10326194,3445.5,3445.4,3.2078]
[1735810978715,9.81264194,3445.5,3445.1,0.29065]
[1735810978919,0.60281976,3445.4,3445.3,0.29064]
[1735810980328,0.31218976,3445.4,3445.3,0.29064]
[1735810980631,0.71803978,3445.4,3445.3,0.29064]
[1735810982729,0.72282,3445.5,3445.4,0.29063]
[1735810984329,0.4322,3445.5,3445.0,3.2078]
[1735810984630,0.29064,3445.3,3445.2,0.29063]
[1735810985930,0.29063,3445.4,3445.3,0.29063]
[1735810988027,0.4322,3445.5,3445.3,0.29063]
[1735810988228,0.4322,3445.5,3445.0,3.2078]
[1735810988429,0.4322,3445.5,3445.4,0.29063]
[1735810996728,1.15023978,3445.5,3445.4,0.29063]
[1735811000434,1.15023978,3445.5,3445.4,0.15170116]
[1735811001336,9.15834756,3445.5,3445.4,0.15170116]
[1735811003030,8.75249754,3445.5,3445.4,0.15170116]
[1735811003239,9.15848096,3445.5,3445.4,0.15170116]
[1735811003430,8.75249754,3445.5,3445.4,0.15170116]
[1735811005432,9.15852612,3445.5,3445.4,0.15170116]
[1735811005839,8.75249754,3445.5,3445.4,0.15170116]
[1735811007326,0.74438976,3445.5,3445.4,0.15170116]
[1735811008440,1.1505145,3445.5,3445.4,0.15170116]
[1735811011041,0.74438976,3445.5,3445.4,0.15170116]
[1735811011545,0.4322,3445.5,3445.4,0.15170116]
[1735811017953,0.4322,3445.5,3445.1,1.63831361]
[1735811018549,11.44329094,3445.3,3445.2,0.29065]
[1735811018748,12.16161182,3445.3,3445.2,0.29065]
[1735811026052,11.7554807,3445.3,3445.2,0.29065]
[1735811034164,11.44329094,3445.3,3445.2,0.29065]
[1735811034463,11.44329094,3445.3,3445.2,1.20232361]
[1735811035758,6.86748897,3445.6,3445.2,0.91167361]
[1735811035962,0.30502835,3445.5,3445.4,0.29063]
[1735811036965,0.30502835,3445.5,3445.4,1.20463]
[1735811040655,7.17251732,3445.5,3445.4,1.20463]
[1735811041261,7.5784669,3445.5,3445.4,1.20463]
[1735811041661,0.71097793,3445.5,3445.4,1.20463]
[1735811041863,0.91167361,3445.6,3445.5,0.29062]
[1735811042963,1.20228361,3445.6,3445.5,0.29062]
[1735811043267,0.91167361,3445.6,3445.5,0.29062]
[1735811047268,1.20228361,3445.6,3445.5,0.29062]
[1735811047468,1.20228361,3445.6,3445.2,0.4469]
[1735811047469,0.29064,3445.3,3445.2,0.29064]
[1735811047766,0.29065,3445.2,3445.1,3.2078]
[1735811048073,1.64815,3445.2,3445.1,3.49845]
[1735811048672,1.95317835,3445.2,3445.1,3.49845]
[1735811049371,1.66252835,3445.2,3445.1,3.49845]
[1735811049671,1.95317835,3445.2,3445.1,3.49845]
[1735811050765,1.66252835,3445.2,3445.1,3.49845]
[1735811051572,8.52792333,3445.2,3445.1,3.49845]
[1735811052567,8.07592333,3445.2,3445.1,3.49845]
[1735811053272,1.21052835,3445.2,3445.1,4.41012361]
[1735811053472,0.75592835,3445.2,3445.1,4.41012361]
[1735811055069,1.04657835,3445.2,3445.1,3.49845]
[1735811055370,0.75592835,3445.2,3445.1,3.49845]
[1735811056373,1.16182325,3445.2,3445.1,3.49845]
[1735811057270,1.45247325,3445.2,3445.1,3.49845]
[1735811057965,1.45247325,3445.2,3445.1,3.2078]
[1735811058568,1.45247325,3445.2,3445.1,3.49845]
[1735811059768,1.16182325,3445.2,3444.7,3.6391]
[1735811059974,0.91167361,3444.8,3444.7,3.49848]
[1735811060175,0.91167361,3445.0,3444.9,0.29067]
[1735811060371,0.91167361,3445.0,3444.9,1.20234361]
[1735811060372,0.4441,3445.0,3444.9,1.20234361]
[1735811061881,0.4441,3445.0,3444.9,0.29067]
[1735811062375,0.73476,3445.0,3444.9,0.29067]
[1735811064876,0.4441,3445.0,3444.7,3.2078]
[1735811065182,1.20235361,3444.8,3444.7,3.2078]
[1735811065376,1.20235361,3444.8,3444.7,3.49849]
[1735811065576,1.20235361,3444.8,3444.7,3.2078]
[1735811065978,1.20235361,3444.8,3444.7,3.49849]